fUST/lending_fUST_20240927
["ID","MTS","AMOUNT","RATE_DAILY","PERIOD"]
[339255531,1727407842054,-503.39981811,0.00019178,2]
[339255532,1727407842064,-500.0,0.00019178,2]
[339255533,1727407842073,-665.14,0.00019178,2]
[339255534,1727407842083,-504.71657873,0.00019178,2]
[339255535,1727407842092,-504.3754481,0.00019178,2]
[339255536,1727407842101,-503.00449786,0.00019178,2]
[339255537,1727407842111,-510.19479574,0.00019178,2]
[339255538,1727407842123,-507.07870571,0.00019178,2]
[339255539,1727407842134,-519.92179312,0.00019178,2]
[339255540,1727407842144,-500.0,0.00019178,2]
[339255541,1727407842154,-413.7038129,0.00019178,2]
[339255542,1727407842164,-506.78731645,0.00019178,2]
[339255543,1727407842175,-1211.89,0.00019178,2]
[339255544,1727407842185,-262.28491804,0.00019178,2]
[339255545,1727407842195,-516.82072127,0.00019178,2]
[339255546,1727407842204,-169.9404142,0.00019178,2]
[339255547,1727407842215,-1406.77,0.00019178,2]
[339255548,1727407842225,-500.0,0.00019178,2]
[339255549,1727407842236,-500.0,0.00019178,2]
[339255550,1727407842245,-157.87579031,0.00019178,2]
[339255551,1727407842255,-464.26494316,0.00019178,2]
[339255552,1727407842264,-537.37373621,0.00019178,2]
[339255553,1727407842273,-506.60099789,0.00019178,2]
[339255554,1727407842282,-494.81367335,0.00019178,2]
[339255555,1727407842292,-458.44976795,0.00019178,2]
[339255556,1727407842301,-521.21498956,0.00019178,2]
[339255557,1727407842311,-624.91,0.00019178,2]
[339255558,1727407842324,-568.52091909,0.00019178,2]
[339255559,1727407842334,-510.55026176,0.00019178,2]
[339255560,1727407842344,-407.57807079,0.00019178,2]
[339255561,1727407842354,-610.0,0.00019178,2]
[339255562,1727407842365,-589.14910012,0.00019178,2]
[339255563,1727407842374,-500.0,0.00019178,2]
[339255564,1727407842384,-500.0,0.00019178,2]
[339255565,1727407842396,-506.97307135,0.00019178,2]
[339255566,1727407842408,-508.7841733,0.00019178,2]
[339255567,1727407842417,-157.93431139,0.00019178,2]
[339255568,1727407842427,-500.0,0.00019178,2]
[339255569,1727407842438,-517.1205899,0.00019178,2]
[339255570,1727407842447,-500.0,0.00019178,2]
[339255571,1727407842457,-500.0,0.00019178,2]
[339255572,1727407842472,-506.6433691,0.00019178,2]
[339255573,1727407842481,-500.0,0.00019178,2]
[339255574,1727407842492,-500.0,0.00019178,2]
[339255575,1727407842504,-553.05664782,0.00019178,2]
[339255576,1727407842514,-527.97721592,0.00019178,2]
[339255577,1727407842523,-503.08683379,0.00019178,2]
[339255578,1727407842532,-2351.6,0.00019178,2]
[339255579,1727407842544,-500.0,0.00019178,2]
[339255580,1727407842554,-500.0,0.00019178,2]
[339255581,1727407842563,-503.05146831,0.00019178,2]
[339255582,1727407842573,-561.20569069,0.00019178,2]
[339255583,1727407842583,-566.83856903,0.00019178,2]
[339255584,1727407842592,-500.0,0.00019178,2]
[339255585,1727407842602,-526.34264009,0.00019178,2]
[339255586,1727407842612,-500.0,0.00019178,2]
[339255587,1727407842622,-500.0,0.00019178,2]
[339255588,1727407842631,-1184.71,0.00019178,2]
[339255589,1727407842641,-520.55898909,0.00019178,2]
[339255590,1727407842652,-472.35053575,0.00019178,2]
[339255591,1727407842662,-500.0,0.00019178,2]
[339255592,1727407842672,-500.0,0.00019178,2]
[339255593,1727407842682,-500.0,0.00019178,2]
[339255594,1727407842691,-500.0,0.00019178,2]
[339255595,1727407842701,-526.00384797,0.00019178,2]
[339255596,1727407842710,-562.45,0.00019178,2]
[339255597,1727407842719,-500.0,0.00019178,2]
[339255598,1727407842729,-500.0,0.00019178,2]
[339255599,1727407842739,-600.38907819,0.00019178,2]
[339255600,1727407842748,-500.0,0.00019178,2]
[339255601,1727407842757,-225.66907128,0.00019178,2]
[339255602,1727407842767,-513.62200632,0.00019178,2]
[339255603,1727407842776,-256.72957192,0.00019178,2]
[339255604,1727407842786,-500.0,0.00019178,2]
[339255605,1727407842796,-500.0,0.00019178,2]
[339255606,1727407842805,-598.29239378,0.00019178,2]
[339255607,1727407842815,-500.0,0.00019178,2]
[339255608,1727407842824,-504.1519355,0.00019178,2]
[339255609,1727407842834,-500.0,0.00019178,2]
[339255610,1727407842843,-507.16289939,0.00019178,2]
[339255612,1727407842852,-531.16464479,0.00019178,2]
[339255614,1727407842862,-532.7567702,0.00019178,2]
[339255615,1727407842871,-500.0,0.00019178,2]
[339255616,1727407842881,-500.0,0.00019178,2]
[339255617,1727407842891,-500.0,0.00019178,2]
[339255618,1727407842899,-500.0,0.00019178,2]
[339255619,1727407842910,-500.0,0.00019178,2]
[339255620,1727407842919,-500.0,0.00019178,2]
[339255621,1727407842929,-500.0,0.00019178,2]
[339255622,1727407842939,-500.0,0.00019178,2]
[339255623,1727407842948,-500.0,0.00019178,2]
[339255624,1727407842957,-500.0,0.00019178,2]
[339255625,1727407842967,-500.0,0.00019178,2]
[339255626,1727407842976,-543.31043458,0.00019178,2]
[339255627,1727407842987,-500.0,0.00019178,2]
[339255628,1727407842996,-500.0,0.00019178,2]
[339255629,1727407843006,-500.0,0.00019178,2]
[339255630,1727407843016,-500.0,0.00019178,2]
[339255631,1727407843026,-523.95745318,0.00019178,2]
[339255632,1727407843037,-500.0,0.00019178,2]
[339255633,1727407843047,-500.0,0.00019178,2]
[339255634,1727407843056,-517.52379486,0.00019178,2]
[339255635,1727407843067,-19360.71,0.00019178,2]
[339255636,1727407843076,-505.53742141,0.00019178,2]
[339255637,1727407843086,-613.1507432,0.00019178,2]
[339255638,1727407843095,-201.861592,0.00019178,2]
[339255639,1727407843105,-445.4218728,0.00019178,4]
[339255640,1727407843114,-652.6743941,0.00019178,2]
[339255641,1727407843123,-153.2816296,0.000192,2]
[339255642,1727407843133,-155.18024949,0.00019221,2]
[339255643,1727407843142,-153.0,0.000193,2]
[339255644,1727407843152,-150.204243,0.000194,2]
[339255645,1727407843163,-6384.16429933,0.00019418,2]
[339255646,1727407843173,-32283.5186114,0.00019432,3]
[339255647,1727407843182,-26849.4700611,0.00019432,3]
[339255648,1727407843191,-32283.5186114,0.00019442,3]
[339255649,1727407843200,-26849.4700611,0.00019442,3]
[339255650,1727407843210,-500.0,0.00019451,2]
[339255651,1727407843219,-409.24455849,0.00019451,2]
[339255652,1727407843229,-500.0,0.00019452,2]
[339255653,1727407843238,-500.0,0.00019452,2]
[339255654,1727407843247,-500.0,0.00019452,2]
[339255655,1727407843256,-500.0,0.00019452,2]
[339255656,1727407843265,-500.0,0.00019452,2]
[339255657,1727407843275,-1000.0,0.00019452,2]
[339255658,1727407843284,-500.0,0.00019452,2]
[339255659,1727407843294,-201.71,0.00019452,2]
[339255660,1727407843303,-500.0,0.00019452,2]
[339255661,1727407843313,-500.0,0.00019452,2]
[339255662,1727407843322,-2145.51,0.00019452,2]
[339255663,1727407843331,-547.54,0.00019452,2]
[339255664,1727407843340,-506.95147039,0.00019452,2]
[339255665,1727407843349,-150.16428715,0.00019452,2]
[339255666,1727407843359,-503.51736652,0.00019452,2]
[339255667,1727407843369,-505.32202519,0.00019452,2]
[339255668,1727407843378,-313.98973406,0.00019452,2]
[339255669,1727407843387,-500.0,0.00019452,2]
[339255670,1727407843396,-500.0,0.00019452,2]
[339255671,1727407843405,-253.8923876,0.00019452,2]
[339255672,1727407843433,-246.1076124,0.00019452,2]
[339255673,1727407843443,-71.6859376,0.00019452,2]
[339255674,1727407843606,-823.72,0.00019178,2]
[339255675,1727407843615,-187.84279726,0.00019452,2]
[339255682,1727407845968,-231.75856964,0.00019178,2]
[339255693,1727407993654,-2000.0,0.00019733,10]
[339255697,1727408208776,350.0,0.000141,3]
[339255698,1727408237312,213.8,0.00010959,2]
[339255699,1727408248116,178.17,0.00010959,2]
[339255700,1727408253531,309.33221719,0.0001411,3]
[339255701,1727408258659,890.87,0.00010959,2]
[339255703,1727408310830,184.94,0.00010959,2]
[339255704,1727408321425,154.12,0.00010959,2]
[339255705,1727408332369,154.12,0.00010959,2]
[339255706,1727408343231,616.5,0.00010959,2]
[339255711,1727408828210,-166.666666,0.00016298,2]
[339255712,1727408828234,-300.0,0.00016352,2]
[339255713,1727408828258,-300.0,0.00016352,2]
[339255714,1727408828282,-323.32561886,0.00016353,2]
[339255715,1727408828305,-500.0,0.00016353,2]
[339255716,1727408828329,-463.79635047,0.00016353,2]
[339255717,1727408828361,-807.08553422,0.00016353,2]
[339255718,1727408828383,-500.0,0.00016353,2]
[339255719,1727408828409,-807.08553422,0.00016353,2]
[339255720,1727408828432,-314.25192832,0.00016353,2]
[339255721,1727408828458,-807.08553422,0.00016353,2]
[339255722,1727408828485,-807.08553422,0.00016353,2]
[339255723,1727408828511,-807.08553422,0.00016353,2]
[339255724,1727408828536,-807.08553422,0.00016353,2]
[339255725,1727408828561,-602.3814617,0.00016353,2]
[339255726,1727408833861,500.0,0.000139,2]
[339255727,1727408834240,500.0,0.000139,2]
[339255728,1727408834918,500.0,0.000139,2]
[339255729,1727408835303,500.0,0.000139,2]
[339255730,1727408835696,500.0,0.000139,2]
[339255731,1727408836142,500.0,0.000139,2]
[339255732,1727408836534,500.0,0.000139,2]
[339255733,1727408837455,500.0,0.000139,2]
[339255734,1727408837869,500.0,0.000139,2]
[339255735,1727408838239,500.0,0.000139,2]
[339255736,1727408838638,500.0,0.000139,2]
[339255737,1727408839125,500.0,0.000139,2]
[339255738,1727408839491,500.0,0.000139,2]
[339255739,1727408839926,429.78586013,0.000139,2]
[339255740,1727408843105,-369.66981651,0.00016253,2]
[339255741,1727408843130,-204.70407252,0.00016353,2]
[339255742,1727408843154,-807.08553422,0.00016353,2]
[339255743,1727408843179,-807.08553422,0.00016353,2]
[339255744,1727408843205,-807.08553422,0.00016353,2]
[339255745,1727408843233,-418.07158314,0.00016353,2]
[339255746,1727408849134,-389.01395108,0.00016353,2]
[339255747,1727408849160,-807.08553422,0.00016353,2]
[339255748,1727408849184,-373.71113157,0.00016353,2]
[339255759,1727408953144,-299.153234,0.00015936,2]
[339255760,1727408953169,-300.0,0.00016351,2]
[339255761,1727408953193,-300.0,0.00016351,2]
[339255762,1727408953218,-692.55574691,0.00016352,2]
[339255763,1727408953241,-692.55574691,0.00016352,2]
[339255764,1727408953266,-692.55574691,0.00016352,2]
[339255765,1727408953288,-692.55574691,0.00016352,2]
[339255766,1727408953311,-692.55574691,0.00016352,2]
[339255767,1727408953339,-692.55574691,0.00016352,2]
[339255768,1727408953362,-692.55574691,0.00016352,2]
[339255769,1727408953385,-692.55574691,0.00016352,2]
[339255770,1727408953408,-692.55574691,0.00016352,2]
[339255771,1727408953431,-692.55574691,0.00016352,2]
[339255772,1727408953456,-692.55574691,0.00016352,2]
[339255773,1727408953479,-692.55574691,0.00016352,2]
[339255774,1727408953501,-692.55574691,0.00016352,2]
[339255775,1727408953525,-692.55574691,0.00016352,2]
[339255776,1727408953547,-692.55574691,0.00016352,2]
[339255777,1727408953572,-692.55574691,0.00016352,2]
[339255778,1727408953594,-692.55574691,0.00016352,2]
[339255779,1727408953617,-692.55574691,0.00016352,2]
[339255780,1727408953638,-692.55574691,0.00016352,2]
[339255781,1727408953661,-692.55574691,0.00016352,2]
[339255782,1727408953684,-692.55574691,0.00016352,2]
[339255783,1727408953707,-692.55574691,0.00016352,2]
[339255784,1727408953872,-692.55574691,0.00016352,2]
[339255785,1727408953898,-692.55574691,0.00016352,2]
[339255786,1727408953923,-692.55574691,0.00016352,2]
[339255787,1727408953947,-692.55574691,0.00016352,2]
[339255788,1727408953972,-692.55574691,0.00016352,2]
[339255789,1727408953997,-692.55574691,0.00016352,2]
[339255790,1727408954021,-692.55574691,0.00016352,2]
[339255791,1727408954045,-692.55574691,0.00016352,2]
[339255792,1727408954071,-692.55574691,0.00016352,2]
[339255793,1727408954094,-692.55574691,0.00016352,2]
[339255794,1727408954118,-692.55574691,0.00016352,2]
[339255795,1727408954142,-692.55574691,0.00016352,2]
[339255796,1727408954165,-692.55574691,0.00016352,2]
[339255797,1727408954188,-692.55574691,0.00016352,2]
[339255798,1727408954210,-692.55574691,0.00016352,2]
[339255799,1727408954232,-692.55574691,0.00016352,2]
[339255800,1727408954256,-692.55574691,0.00016352,2]
[339255801,1727408954279,-692.55574691,0.00016352,2]
[339255802,1727408954302,-692.55574691,0.00016352,2]
[339255803,1727408954325,-692.55574691,0.00016352,2]
[339255804,1727408954347,-692.55574691,0.00016352,2]
[339255805,1727408954371,-692.55574691,0.00016352,2]
[339255806,1727408954400,-692.55574691,0.00016352,2]
[339255807,1727408954423,-692.55574691,0.00016352,2]
[339255808,1727408954450,-692.55574691,0.00016352,2]
[339255809,1727408954474,-692.55574691,0.00016352,2]
[339255810,1727408954496,-692.55574691,0.00016352,2]
[339255811,1727408954520,-692.55574691,0.00016352,2]
[339255812,1727408954545,-692.55574691,0.00016352,2]
[339255813,1727408954569,-692.55574691,0.00016352,2]
[339255814,1727408954593,-692.55574691,0.00016352,2]
[339255815,1727408954617,-692.55574691,0.00016352,2]
[339255816,1727408954640,-692.55574691,0.00016352,2]
[339255817,1727408954665,-692.55574691,0.00016352,2]
[339255818,1727408954689,-692.55574691,0.00016352,2]
[339255819,1727408954711,-692.55574691,0.00016352,2]
[339255820,1727408954735,-692.55574691,0.00016352,2]
[339255821,1727408954757,-692.55574691,0.00016352,2]
[339255822,1727408954780,-692.55574691,0.00016352,2]
[339255823,1727408954804,-692.55574691,0.00016352,2]
[339255824,1727408954826,-692.55574691,0.00016352,2]
[339255825,1727408954850,-1079.85699312,0.00016352,2]
[339255826,1727408954874,-1079.85699312,0.00016352,2]
[339255827,1727408954898,-1079.85699312,0.00016352,2]
[339255828,1727408954921,-1079.85699312,0.00016352,2]
[339255829,1727408954946,-1079.85699312,0.00016352,2]
[339255830,1727408954971,-1079.85699312,0.00016352,2]
[339255831,1727408954996,-1079.85699312,0.00016352,2]
[339255832,1727408955020,-1079.85699312,0.00016352,2]
[339255833,1727408955045,-1079.85699312,0.00016352,2]
[339255834,1727408955069,-1079.85699312,0.00016352,2]
[339255835,1727408955093,-1079.85699312,0.00016352,2]
[339255836,1727408955117,-1079.85699312,0.00016352,2]
[339255837,1727408955141,-1079.85699312,0.00016352,2]
[339255838,1727408955163,-1079.85699312,0.00016352,2]
[339255839,1727408955186,-1079.85699312,0.00016352,2]
[339255840,1727408955208,-1079.85699312,0.00016352,2]
[339255841,1727408955232,-1079.85699312,0.00016352,2]
[339255842,1727408955254,-1079.85699312,0.00016352,2]
[339255843,1727408955279,-1079.85699312,0.00016352,2]
[339255844,1727408955302,-1079.85699312,0.00016352,2]
[339255845,1727408955324,-1079.85699312,0.00016352,2]
[339255846,1727408955348,-1079.85699312,0.00016352,2]
[339255847,1727408955370,-1079.85699312,0.00016352,2]
[339255848,1727408955393,-1079.85699312,0.00016352,2]
[339255849,1727408955417,-1079.85699312,0.00016352,2]
[339255850,1727408955440,-1079.85699312,0.00016352,2]
[339255851,1727408955462,-1079.85699306,0.00016352,2]
[339255852,1727408955484,-500.0,0.00016353,2]
[339255853,1727408955505,-619.98681627,0.00016353,2]
[339255854,1727408955526,-479.85450969,0.00016353,2]
[339255855,1727408955548,-500.0,0.00016353,2]
[339255856,1727408955570,-243.27724633,0.00016353,2]
[339255857,1727408955592,-500.0,0.00016353,2]
[339255858,1727408955613,-500.0,0.00016353,2]
[339255859,1727408955635,-619.02820315,0.00016353,2]
[339255860,1727408955656,-500.0,0.00016353,2]
[339255861,1727408955680,-500.0,0.00016353,2]
[339255862,1727408955702,-500.0,0.00016353,2]
[339255863,1727408955723,-24900.0,0.00016354,2]
[339255864,1727408955745,-500.0,0.00016373,2]
[339255865,1727408955766,-500.9470912,0.00016373,2]
[339255866,1727408955788,-500.0,0.00016373,2]
[339255867,1727408955810,-500.0,0.00016373,2]
[339255868,1727408955834,-417.73470645,0.00016373,2]
[339255869,1727408955856,-227.16499714,0.00016373,2]
[339255870,1727408955882,-296.271888,0.00016711,2]
[339255871,1727408955906,-150.0,0.00016808,2]
[339255872,1727408955934,-163.605249,0.00016853,2]
[339255873,1727408955957,-41137.4889137,0.00016911,2]
[339255874,1727408955981,-1000.0,0.00016921,2]
[339255875,1727408956002,-859.35425623,0.00016921,2]
[339255876,1727408956340,-140.64574377,0.00016921,2]
[339255877,1727408956362,-1053.66758074,0.00016921,2]
[339255878,1727408957175,-296.271888,0.00017396,2]
[339255879,1727408957199,-166.666666,0.00017409,2]
[339255881,1727408965367,500.0,0.00016352,2]
[339255882,1727408965855,579.85699306,0.00016352,2]
[339255883,1727408969273,-1236.56230308,0.00017602,2]
[339255884,1727408969296,-1500.0,0.00017631,2]
[339255885,1727408969318,-1500.0,0.00017631,2]
[339255886,1727408969340,-41137.4889137,0.00017693,2]
[339255887,1727408969361,-193.61653236,0.00017702,2]
[339255888,1727408969383,-329.39147508,0.00017773,2]
[339255889,1727408969404,-500.0,0.00017773,2]
[339255890,1727408969425,-500.0,0.00017773,2]
[339255891,1727408969445,-548.83407114,0.00017773,2]
[339255892,1727408969465,-503.00385698,0.00017773,2]
[339255893,1727408969485,-500.0,0.00017773,2]
[339255894,1727408969506,-332.35395732,0.000178,2]
[339255895,1727408969527,-420.0,0.00017871,2]
[339255896,1727408969547,-1236.56230307,0.00017874,2]
[339255897,1727408969568,-420.0,0.00017986,2]
[339255898,1727408969588,-11857.07355434,0.00018,15]
[339255899,1727408969609,-296.271888,0.00018081,2]
[339255900,1727408969630,-41137.4889137,0.00018088,2]
[339255901,1727408969650,-1236.56230307,0.00018146,2]
[339255902,1727408969670,-40333.90832257,0.00018314,2]
[339255903,1727408980650,203.1356071,0.00016352,2]
[339255904,1727408989633,22.89523504,0.00017396,2]
[339255942,1727409031966,-246.37293076,0.00017396,2]
[339255944,1727409031976,-803.58059113,0.00018314,2]
[339255946,1727409031986,-500.0,0.00018321,2]
[339255948,1727409031997,-500.0,0.00018355,2]
[339255950,1727409032006,-300.0,0.00018391,2]
[339255952,1727409032016,-300.0,0.00018391,2]
[339255954,1727409032026,-22474.55836453,0.00018392,2]
[339256001,1727409038429,-500.0,0.00018391,2]
[339256002,1727409038438,-500.0,0.00018391,2]
[339256004,1727409038447,-500.0,0.00018391,2]
[339256006,1727409038456,-500.0,0.00018391,2]
[339256008,1727409038466,-500.0,0.00018391,2]
[339256010,1727409038475,-500.0,0.00018391,2]
[339256012,1727409038484,-500.0,0.00018391,2]
[339256014,1727409038493,-500.0,0.00018391,2]
[339256016,1727409038504,-278.71508696,0.00018391,2]
[339256018,1727409038512,-500.0,0.00018391,2]
[339256020,1727409038522,-500.0,0.00018391,2]
[339256022,1727409038531,-500.0,0.00018391,2]
[339256024,1727409038540,-500.0,0.00018391,2]
[339256026,1727409038549,-500.0,0.00018391,2]
[339256028,1727409038559,-500.0,0.00018391,2]
[339256030,1727409038569,-18662.93054917,0.00018392,2]
[339256032,1727409038579,-1236.56230307,0.00018418,2]
[339256034,1727409038588,-458.52375741,0.0001842,2]
[339256036,1727409038597,-166.666666,0.0001852,2]
[339256038,1727409038607,-1236.56230307,0.0001869,2]
[339256039,1727409038615,-433.99077139,0.00018769,2]
[339256041,1727409038624,-335.89815679,0.00018769,2]
[339256043,1727409038633,-500.0,0.00018769,2]
[339256045,1727409038642,-170.29407244,0.00018769,2]
[339256047,1727409038652,-500.0,0.00018769,2]
[339256049,1727409038661,-500.0,0.00018769,2]
[339256051,1727409038670,-500.0,0.00018769,2]
[339256053,1727409038680,-500.0,0.00018769,2]
[339256055,1727409038689,-500.0,0.00018769,2]
[339256057,1727409038698,-383.31974221,0.00018769,2]
[339256059,1727409038708,-41137.4889137,0.0001877,2]
[339256061,1727409038718,-500.78707402,0.00018773,2]
[339256063,1727409038727,-41137.4889137,0.0001878,2]
[339256065,1727409038737,-41137.4889137,0.0001879,2]
[339256067,1727409038747,-78347.95425249,0.000188,2]
[339256069,1727409038757,-151.0,0.000188,2]
[339256071,1727409038766,-153.162631,0.000188,2]
[339256073,1727409038777,-151.0,0.000188,2]
[339256075,1727409038787,-254.477916,0.000188,2]
[339256077,1727409038796,-254.477916,0.000188,2]
[339256079,1727409038805,-151.0,0.000188,2]
[339256081,1727409038815,-151.0,0.000188,2]
[339256083,1727409038825,-153.992414,0.000188,2]
[339256085,1727409038834,-151.0,0.000188,2]
[339256087,1727409038843,-151.0,0.000188,2]
[339256088,1727409038853,-151.0,0.000188,2]
[339256090,1727409038862,-352.81122636,0.00018904,2]
[339256092,1727409038871,-167.242773,0.00018904,2]
[339256094,1727409038881,-152.405389,0.00018916,2]
[339256096,1727409038891,-151.0,0.00018916,2]
[339256098,1727409038901,-151.0,0.00018916,2]
[339256100,1727409038911,-151.0,0.00018916,2]
[339256102,1727409038920,-151.0,0.00018916,2]
[339256104,1727409038930,-151.0,0.00018916,2]
[339256105,1727409038940,-151.0,0.00018916,2]
[339256107,1727409038950,-253.870569,0.00018916,2]
[339256108,1727409038960,-253.870569,0.00018916,2]
[339256110,1727409038970,-309.045752,0.00018916,2]
[339256112,1727409038980,-309.045752,0.00018916,2]
[339256114,1727409038990,-182.198975,0.00018916,2]
[339256115,1727409039001,-151.0,0.00018916,2]
[339256116,1727409039012,-156.770266,0.00018916,2]
[339256117,1727409039022,-151.0,0.00018916,2]
[339256118,1727409039032,-151.0,0.00018916,2]
[339256119,1727409039042,-151.0,0.00018916,2]
[339256120,1727409039052,-151.0,0.00018916,2]
[339256121,1727409039062,-151.0,0.00018916,2]
[339256122,1727409039072,-151.0,0.00018916,2]
[339256123,1727409039081,-223.592904,0.00018916,2]
[339256124,1727409039091,-223.592904,0.00018916,2]
[339256125,1727409039101,-392.86795189,0.00018978,2]
[339256126,1727409039111,-1298.42804154,0.00018978,2]
[339256127,1727409039122,-1000.0,0.00018978,2]
[339256128,1727409039132,-151.0,0.00019068,2]
[339256129,1727409039141,-151.0,0.00019068,2]
[339256130,1727409039273,-151.0,0.00019068,2]
[339256131,1727409039284,-151.0,0.00019068,2]
[339256132,1727409039294,-151.0,0.00019068,2]
[339256133,1727409039304,-151.0,0.00019068,2]
[339256134,1727409039314,-270.846688,0.00019068,2]
[339256135,1727409039324,-151.0,0.00019068,2]
[339256136,1727409039333,-151.0,0.00019068,2]
[339256137,1727409039343,-151.0,0.00019068,2]
[339256138,1727409039352,-500.0,0.00019073,2]
[339256139,1727409039362,-152.330806,0.00019078,2]
[339256140,1727409039372,-215.790452,0.00019078,2]
[339256141,1727409039382,-151.0,0.00019078,2]
[339256142,1727409039393,-151.0,0.00019078,2]
[339256143,1727409039403,-254.477916,0.00019078,2]
[339256144,1727409039413,-254.477916,0.00019078,2]
[339256145,1727409039423,-151.0,0.00019078,2]
[339256146,1727409039433,-151.0,0.00019078,2]
[339256147,1727409039442,-66615.75207274,0.00019078,2]
[339256148,1727409039452,-150.112239,0.000191,2]
[339256149,1727409039462,-151.0,0.00019158,2]
[339256150,1727409039472,-205.117308,0.00019158,2]
[339256151,1727409039482,-151.0,0.00019158,2]
[339256152,1727409039491,-151.0,0.00019158,2]
[339256153,1727409039503,-151.0,0.00019158,2]
[339256154,1727409039512,-151.0,0.00019158,2]
[339256155,1727409039522,-253.870569,0.00019158,2]
[339256156,1727409039532,-253.870569,0.00019158,2]
[339256157,1727409039542,-309.045752,0.00019158,2]
[339256158,1727409039551,-309.045752,0.00019158,2]
[339256159,1727409039561,-151.0,0.00019158,2]
[339256160,1727409039571,-151.0,0.00019158,2]
[339256161,1727409039581,-151.0,0.00019158,2]
[339256162,1727409039592,-151.0,0.00019158,2]
[339256163,1727409039602,-153.280899,0.00019158,2]
[339256164,1727409039612,-151.0,0.00019158,2]
[339256165,1727409039621,-151.0,0.00019158,2]
[339256166,1727409039631,-223.592904,0.00019158,2]
[339256168,1727409039641,-223.592904,0.00019158,2]
[339256170,1727409039651,-1000.0,0.00019167,2]
[339256172,1727409039660,-1000.0,0.00019167,2]
[339256173,1727409039670,-1000.0,0.00019167,2]
[339256175,1727409039679,-520.63026515,0.00019167,2]
[339256177,1727409039689,-152.837227,0.00019168,2]
[339256178,1727409039698,-151.0,0.00019168,2]
[339256179,1727409039707,-151.0,0.00019168,2]
[339256180,1727409039717,-151.0,0.00019168,2]
[339256181,1727409039727,-151.0,0.00019168,2]
[339256182,1727409039736,-151.0,0.00019168,2]
[339256183,1727409039747,-151.0,0.00019168,2]
[339256184,1727409039762,-180.493449,0.00019168,2]
[339256186,1727409039772,-500.39443641,0.00019173,2]
[339256188,1727409039782,-500.0,0.00019173,2]
[339256190,1727409039791,-500.50451328,0.00019173,2]
[339256192,1727409039802,-500.0,0.00019173,2]
[339256194,1727409039811,-160.0,0.00019177,2]
[339256196,1727409039822,-8248.15350755,0.00019178,2]
[339256198,1727409039833,-506.8130447,0.00019178,2]
[339256200,1727409039842,-450.80446651,0.00019178,2]
[339256202,1727409039852,-518.11206169,0.00019178,2]
[339256204,1727409039862,-500.0,0.00019178,2]
[339256206,1727409039872,-509.55219118,0.00019178,2]
[339256208,1727409039881,-500.0,0.00019178,2]
[339256210,1727409039892,-511.98867425,0.00019178,2]
[339256212,1727409039902,-603.61750877,0.00019178,2]
[339256213,1727409039912,-532.2860356,0.00019178,2]
[339256215,1727409039922,-500.0,0.00019178,2]
[339256216,1727409039932,-500.0,0.00019178,2]
[339256217,1727409039941,-500.0,0.00019178,2]
[339256218,1727409039951,-500.0,0.00019178,2]
[339256219,1727409039962,-504.58704169,0.00019178,2]
[339256220,1727409039971,-504.39762484,0.00019178,2]
[339256221,1727409039981,-500.0,0.00019178,2]
[339256222,1727409039991,-508.20465973,0.00019178,2]
[339256223,1727409040003,-500.0,0.00019178,2]
[339256224,1727409040013,-500.0,0.00019178,2]
[339256225,1727409040024,-500.0,0.00019178,2]
[339256226,1727409040035,-506.86488071,0.00019178,2]
[339256227,1727409040046,-503.06558109,0.00019178,2]
[339256228,1727409040057,-500.0,0.00019178,2]
[339256229,1727409040067,-484.81701463,0.00019178,2]
[339256230,1727409040077,-500.0,0.00019178,2]